bitfinex/quotes_SOLUSD_20250902
["timestamp","ask_amount","ask_price","bid_price","bid_amount"]
[1756843723891,0.71000001,206.08,206.07,30.85271994]
[1756843724091,0.71000001,206.08,206.07,30.88271994]
[1756843724292,1e-08,206.08,206.07,30.88271994]
[1756843724499,1e-08,206.08,206.07,42.85719921]
[1756843725611,1e-08,206.08,206.07,43.51719921]
[1756843725805,1e-08,206.08,206.07,57.53927793]
[1756843726502,1e-08,206.08,206.07,96.41927793]
[1756843729619,1e-08,206.08,206.07,108.3937572]
[1756843730125,1e-08,206.08,206.07,84.44479866]
[1756843730304,1e-08,206.08,206.07,96.41927793]
[1756843730922,1e-08,206.08,206.07,108.3937572]
[1756843731310,1e-08,206.08,206.07,96.41927793]
[1756843732211,1e-08,206.08,206.07,30.45279322]
[1756843732400,1e-08,206.08,206.07,69.31279322]
[1756843732604,1e-08,206.08,206.07,69.73927793]
[1756843733139,1e-08,206.08,206.07,110.29495479]
[1756843733319,1e-08,206.08,206.07,149.15495479]
[1756843733717,1e-08,206.08,206.07,110.43711636]
[1756843733920,1e-08,206.08,206.07,149.29711636]
[1756843734118,0.71000001,206.08,206.07,4.88271994]
[1756843734476,0.71000001,206.08,206.07,0.03]
[1756843734741,12.68447928,206.08,206.07,0.03]
[1756843734909,12.68447928,206.08,206.04,0.03]
[1756843735105,11.97447927,206.07,206.04,0.03]
[1756843735319,1e-08,206.08,206.06,11.97447927]
[1756843735540,1e-08,206.08,206.07,37.97447927]
[1756843736226,1e-08,206.08,206.07,26.0]
[1756843736422,0.71000001,206.08,206.07,37.97447927]
[1756843736619,0.71000001,206.08,206.07,30.85271994]
[1756843737618,1e-08,206.08,206.07,42.82719921]
[1756843738236,0.71000001,206.08,206.07,42.82719921]
[1756843738441,1e-08,206.08,206.07,42.82719921]
[1756843739352,0.71000001,206.08,206.07,42.82719921]
[1756843739558,1e-08,206.08,206.07,42.82719921]
[1756843739730,0.71000001,206.08,206.07,30.85271994]
[1756843740345,1e-08,206.08,206.07,42.82719921]
[1756843740957,1e-08,206.08,206.07,96.36927793]
[1756843741547,1e-08,206.08,206.07,95.70927793]
[1756843741856,1e-08,206.08,206.07,96.36927793]
[1756843742652,1e-08,206.08,206.07,96.39927793]
[1756843742852,1e-08,206.11,206.1,39.59559401]
[1756843743162,1e-08,206.11,206.1,90.83655799]
[1756843743350,0.71,206.16,206.1,91.49655799]
[1756843743558,0.71,206.19,206.15,11.97447927]
[1756843743755,0.71,206.19,206.12,16.98039976]
[1756843743756,0.71,206.18,206.17,11.97447927]
[1756843744346,0.71,206.18,206.16,11.97447927]
[1756843744749,0.71,206.17,206.15,26.0]
[1756843744975,0.71,206.16,206.12,16.82602206]
[1756843745160,11.97447927,206.14,206.12,4.85154279]
[1756843745343,0.71,206.16,206.12,16.82602206]
[1756843745669,11.97447927,206.18,206.12,16.82602206]
[1756843745670,0.71,206.15,206.12,16.82602206]
[1756843746345,0.71,206.2,206.14,11.97447927]
[1756843746542,0.71,206.19,206.16,11.97447927]
[1756843746997,0.71,206.18,206.14,38.92]
[1756843747154,0.71,206.17,206.15,11.97447927]
[1756843747565,0.71,206.16,206.13,26.0]
[1756843747777,0.71,206.15,206.14,4.85107208]
[1756843748076,8.62644163,206.15,206.11,4.85177817]
[1756843748243,7.91644163,206.12,206.11,4.85177817]
[1756843748455,8.62644163,206.12,206.11,4.85177817]
[1756843749163,0.71,206.12,206.11,4.85177817]
[1756843749484,0.71,206.19,206.14,26.0]
[1756843749679,0.71,206.18,206.15,7.91644163]
[1756843749840,0.71,206.18,206.16,7.91644163]
[1756843750036,0.71,206.17,206.14,33.91644163]
[1756843750243,0.71,206.16,206.14,26.0]
[1756843750536,0.71,206.16,206.14,33.91644163]
[1756843750772,0.71,206.15,206.14,26.0]
[1756843751190,7.91644163,206.19,206.14,26.0]
[1756843751483,0.71,206.18,206.15,4.85083676]
[1756843751678,0.71,206.18,206.11,26.0]
[1756843751679,8.62644163,206.18,206.11,26.0]
[1756843751885,8.62644163,206.18,206.13,26.0]
[1756843751886,0.71,206.17,206.13,26.0]
[1756843752058,26.0,206.24,206.13,26.0]
[1756843752260,26.71,206.23,206.13,26.0]
[1756843752464,7.91644163,206.19,206.14,7.91644163]
[1756843752681,0.71,206.18,206.13,26.0]
[1756843752889,26.0,206.23,206.14,7.91644163]
[1756843753094,7.91644163,206.19,206.14,7.91644163]
[1756843753299,7.91644163,206.2,206.15,7.91644163]
[1756843753459,0.71,206.19,206.15,7.91644163]
[1756843753660,0.71,206.18,206.14,30.85107208]
[1756843753882,0.71,206.17,206.14,30.85107208]
[1756843754084,0.71,206.16,206.14,30.85107208]
[1756843754388,0.71,206.15,206.14,30.85107208]
[1756843754681,8.62644163,206.17,206.14,30.85107208]
[1756843754880,0.71,206.16,206.14,30.85107208]
[1756843755270,95.91114755,206.26,206.11,26.0]
[1756843755271,8.62644163,206.15,206.11,26.0]
[1756843755467,7.91644163,206.13,206.09,4.85224901]
[1756843755670,8.62644163,206.13,206.11,26.0]
[1756843755869,0.71,206.13,206.11,26.0]
[1756843756071,0.71,206.12,206.11,26.0]
[1756843756685,7.91644163,206.14,206.1,26.0]
[1756843756878,0.71,206.13,206.1,26.0]
[1756843757191,0.71,206.18,206.12,7.91644163]
[1756843757397,8.62644163,206.18,206.13,12.76774905]
[1756843757573,0.71,206.17,206.13,12.76774905]
[1756843757773,7.91644163,206.19,206.14,7.91644163]
[1756843758270,0.71,206.21,206.17,7.91644163]
[1756843758469,227.99559401,206.29,206.16,26.0]
[1756843758470,0.71,206.2,206.16,26.0]
[1756843758790,0.71,206.19,206.16,26.0]
[1756843758980,7.91644163,206.21,206.16,26.0]
[1756843759180,8.62644163,206.2,206.16,26.0]
[1756843759384,0.71,206.19,206.17,4.8503662]
[1756843759573,7.91644163,206.2,206.17,4.8503662]
[1756843759975,0.71,206.19,206.17,4.8503662]
[1756843760182,8.62644163,206.21,206.17,4.8503662]
[1756843760383,0.71,206.2,206.17,4.8503662]
[1756843760575,0.71,206.23,206.17,13.46680783]
[1756843760776,0.06,206.21,206.17,12.76680783]
[1756843761073,0.77,206.21,206.17,4.8503662]
[1756843761275,0.71,206.2,206.17,4.8503662]
[1756843761491,7.97644163,206.21,206.17,4.8503662]
[1756843761804,0.77,206.21,206.17,4.8503662]
[1756843763279,0.71,206.2,206.17,4.8503662]
[1756843763600,8.62644163,206.2,206.17,4.8503662]
[1756843763780,0.71,206.19,206.17,4.8503662]
[1756843764300,0.71,206.19,206.16,26.0]
[1756843764301,8.62644163,206.18,206.14,26.0]
[1756843764503,0.06,206.21,206.14,26.0]
[1756843764504,7.91644163,206.15,206.14,26.0]
[1756843764795,7.91644163,206.15,206.12,4.85154279]
[1756843765002,7.91644163,206.13,206.11,0.03]
[1756843765174,8.62644163,206.12,206.11,0.03]
[1756843765770,0.71,206.12,206.11,0.03]
[1756843765985,0.71,206.14,206.11,0.03]
[1756843766392,7.91644163,206.12,206.11,0.03]
[1756843766799,7.91644163,206.15,206.11,0.73]
[1756843767507,7.91644163,206.15,206.11,4.88177817]
[1756843767702,8.62644163,206.15,206.11,4.88177817]
[1756843767902,7.91644163,206.15,206.11,4.88177817]
[1756843768509,0.71,206.17,206.11,4.88177817]
[1756843768706,7.91644163,206.12,206.11,0.03]
[1756843769289,8.62644163,206.12,206.11,0.03]
[1756843770702,47.38644163,206.12,206.11,0.03]
[1756843771583,8.62644163,206.12,206.11,0.03]
[1756843771804,7.91644163,206.16,206.11,0.03]
[1756843771805,0.71,206.14,206.11,0.03]
[1756843772036,7.91644163,206.12,206.11,0.03]
[1756843774405,8.62644163,206.12,206.11,0.03]
[1756843775102,13.47798442,206.12,206.11,0.03]
[1756843775303,0.71,206.12,206.11,0.03]
[1756843775613,13.47798442,206.12,206.11,0.03]
[1756843776014,13.59559401,206.11,206.07,0.03]
[1756843776224,21.93852035,206.08,206.07,0.03]
[1756843776727,22.64852035,206.08,206.07,0.03]
[1756843776926,7.91644163,206.05,206.04,0.03]
[1756843777131,29.85496198,206.05,206.04,0.03]
[1756843777329,30.56496198,206.05,206.04,0.03]
[1756843777540,4.85366208,206.03,206.02,0.03]
[1756843777713,12.77010371,206.03,206.02,0.03]
[1756843777908,13.48010371,206.03,206.02,0.03]
[1756843778227,27.50218243,206.03,206.02,0.03]
[1756843778404,53.55207872,206.03,206.02,0.03]
[1756843778606,61.46852035,206.03,206.02,0.03]
[1756843778810,22.64852035,206.03,206.02,0.03]
[1756843779132,61.46852035,206.03,206.02,0.03]
[1756843779332,22.64852035,206.03,206.02,0.03]
[1756843779629,61.46852035,206.03,206.02,0.03]
[1756843779804,66.32218243,206.03,206.02,0.03]
[1756843780209,14.02207872,206.02,206.01,0.03]
[1756843780528,8.62644163,206.02,206.01,0.03]
[1756843780722,47.42644163,206.02,206.01,0.03]
[1756843781033,46.71644163,206.02,206.01,0.03]
[1756843782335,38.8,206.02,206.01,0.71]
[1756843782535,46.71644163,206.02,206.01,0.03]
[1756843782907,0.69,206.09,206.01,0.71]
[1756843783247,244.84881849,206.16,206.01,0.71]
[1756843783248,38.8,206.08,206.01,8.62644163]
[1756843783542,38.78,206.07,206.02,8.59644163]
[1756843783735,46.69644163,206.07,206.02,0.68]
[1756843784035,7.91644163,206.06,206.04,4.85342651]
[1756843785332,7.91644163,206.05,206.02,4.85389767]
[1756843785731,7.91644163,206.06,206.02,5.53389767]
[1756843786126,38.76,206.07,206.03,0.68]
[1756843786332,7.91644163,206.06,206.02,4.85389767]
[1756843786629,7.91644163,206.06,206.03,0.68]
[1756843786808,14.02207872,206.15,206.04,0.68]
[1756843786809,0.69,206.12,206.04,0.68]
[1756843787009,38.76,206.11,206.05,7.91644163]
[1756843787214,7.91644163,206.09,206.06,4.85295544]
[1756843788335,7.91644163,206.08,206.06,4.85295544]
[1756843788640,7.91644163,206.07,206.06,4.85295544]
[1756843788841,38.76,206.09,206.06,4.85295544]
[1756843789028,38.76,206.11,206.07,0.68]
[1756843789221,38.76,206.11,206.08,4.85248447]
[1756843789734,38.76,206.11,206.08,5.53248447]
[1756843790339,0.69,206.15,206.08,16.98369565]
[1756843790524,46.67644163,206.14,206.09,8.59644163]
[1756843790835,46.67644163,206.14,206.09,0.68]
[1756843791006,0.69,206.16,206.1,0.68]
[1756843791209,7.91644163,206.15,206.11,16.98122361]
[1756843791428,46.65644163,206.16,206.12,0.68]
[1756843791632,0.69,206.19,206.11,16.98122361]
[1756843791819,7.91644163,206.17,206.13,0.68]
[1756843792019,0.06,206.21,206.14,0.68]
[1756843792319,0.06,206.21,206.16,7.91644163]
[1756843792631,7.97644163,206.21,206.17,0.68]
[1756843793010,0.06,206.21,206.18,0.68]
[1756843793215,0.06,206.21,206.18,4.84997885]
[1756843793632,0.06,206.21,206.18,5.52997885]
[1756843794136,0.06,206.21,206.18,13.44642048]
[1756843795041,0.06,206.21,206.19,8.59644163]
[1756843795245,0.06,206.21,206.2,4.84966052]
[1756843795544,0.06,206.21,206.2,5.52966052]
[1756843795713,0.06,206.21,206.2,4.84966052]
[1756843796636,0.06,206.21,206.2,5.52966052]
[1756843797872,0.06,206.21,206.2,4.84966052]
[1756843798059,0.06,206.21,206.2,5.52966052]
[1756843798359,0.06,206.21,206.2,4.84966052]
[1756843798539,0.06,206.24,206.2,39.59233217]
[1756843798742,1e-08,206.24,206.23,47.65419721]
[1756843798949,1e-08,206.24,206.23,47.93852035]
[1756843799132,1e-08,206.24,206.23,48.61852035]
[1756843799332,1e-08,206.24,206.23,53.4674754]
[1756843801638,1e-08,206.24,206.23,92.2274754]
[1756843801837,1e-08,206.24,206.23,92.2074754]
[1756843802557,1e-08,206.24,206.23,84.29103377]
[1756843802762,1e-08,206.24,206.23,92.2074754]
[1756843802944,3.87,206.38,206.23,100.12391703]
[1756843803281,0.69,206.38,206.35,4.8461352]
[1756843803644,0.69,206.37,206.35,4.8461352]
[1756843803844,0.69,206.39,206.35,4.8461352]
[1756843804174,0.69,206.38,206.35,4.8461352]
[1756843804354,7.91644163,206.39,206.35,4.8461352]
[1756843804682,8.60644163,206.37,206.33,26.0]
[1756843804839,0.69,206.4,206.33,8.59644163]
[1756843805047,7.91644163,206.38,206.3,26.0]
[1756843805270,7.91644163,206.38,206.27,79.84216157]
[1756843805271,26.0,206.36,206.24,4.84871993]
[1756843805570,7.91644163,206.28,206.24,4.84871993]
[1756843805752,43.64566555,206.37,206.24,4.84871993]
[1756843805753,0.69,206.27,206.24,4.84871993]
[1756843805956,0.69,206.27,206.1,79.7]
[1756843805957,0.69,206.26,206.19,7.91644163]
[1756843806168,0.69,206.26,206.19,13.59559401]
[1756843806356,7.91644163,206.23,206.16,12.12597898]
[1756843806554,7.91644163,206.23,206.14,4.85107208]
[1756843806555,7.91644163,206.22,206.15,0.68]
[1756843806774,37.02,206.3,206.2,7.91644163]
[1756843807065,8.60644163,206.28,206.22,7.91644163]
[1756843807273,0.69,206.32,206.26,4.84824978]
[1756843807468,39.61,206.35,206.27,7.91644163]
[1756843807653,7.91644163,206.33,206.27,7.91644163]
[1756843807845,7.91644163,206.32,206.26,17.64887423]
[1756843808042,8.60644163,206.31,206.26,16.96887423]
[1756843808246,8.60644163,206.31,206.26,42.96887423]
[1756843808467,0.69,206.3,206.26,30.84824978]
[1756843808667,7.91644163,206.29,206.26,30.84824978]
[1756843809057,7.91644163,206.27,206.23,4.84895505]
[1756843809262,7.91644163,206.27,206.22,26.0]
[1756843809263,0.69,206.26,206.22,26.0]
[1756843809450,11.94205594,206.23,206.17,13.59559401]
[1756843809647,11.94205594,206.23,206.17,25.53764995]
[1756843810290,11.94205594,206.21,206.18,26.0]
[1756843810893,12.63205594,206.21,206.18,30.85004971]
[1756843811267,0.67,206.25,206.18,30.85004971]
[1756843811663,11.94205594,206.27,206.21,11.94205594]
[1756843811970,11.94205594,206.28,206.23,11.94205594]
[1756843812168,11.94205594,206.29,206.23,37.94205594]
[1756843812388,11.94205594,206.25,206.22,26.0]
[1756843812688,0.67,206.27,206.22,26.0]
[1756843812890,0.67,206.27,206.23,4.84895505]
[1756843813090,0.67,206.31,206.24,12.62205594]
[1756843813276,11.94205594,206.3,206.23,30.84895505]
[1756843813472,11.94205594,206.3,206.24,11.94205594]
[1756843813784,11.94205594,206.31,206.25,11.94205594]
[1756843813991,11.94205594,206.3,206.24,11.94205594]
[1756843814371,43.8461362,206.35,206.23,43.65134267]
[1756843814372,11.94205594,206.28,206.23,30.84895505]
[1756843814687,12.61205594,206.3,206.24,12.62205594]
[1756843815088,14.02207872,206.34,206.3,127.38794406]
[1756843815292,37.94205594,206.31,206.3,127.38794406]
[1756843815989,11.94205594,206.31,206.3,127.38794406]
[1756843816190,37.94205594,206.31,206.3,127.38794406]
[1756843816499,25.96413466,206.31,206.3,127.38794406]
[1756843816708,25.96413466,206.31,206.3,28.49288919]
[1756843817169,26.0,206.28,206.18,0.03]
[1756843817374,11.94205594,206.19,206.18,0.03]
[1756843817566,39.02,206.19,206.18,0.03]
[1756843817870,11.94205594,206.19,206.18,0.03]
[1756843818272,39.08,206.21,206.18,0.03]
[1756843818485,11.94205594,206.19,206.18,0.03]
[1756843818796,11.94205594,206.19,206.18,4.88013095]
[1756843819475,11.94205594,206.19,206.18,0.03]
[1756843819676,12.61205594,206.19,206.18,0.03]
[1756843819892,0.67,206.19,206.18,0.03]
[1756843820198,12.61205594,206.19,206.18,0.03]
[1756843821405,31.48403038,206.19,206.18,0.03]
[1756843823517,40.02207872,206.16,206.15,0.03]
[1756843823713,91.00413466,206.16,206.15,0.03]
[1756843823930,91.67413466,206.16,206.15,0.03]
[1756843824089,52.63413466,206.16,206.15,0.03]
[1756843824492,96.54473613,206.16,206.15,0.03]
[1756843825714,91.65413466,206.16,206.15,0.03]
[1756843826417,96.50473613,206.16,206.15,0.03]
[1756843826618,52.63413466,206.16,206.15,0.03]
[1756843826919,38.8414857,206.26,206.15,0.03]
[1756843826920,0.67,206.24,206.15,0.71]
[1756843827138,11.94205594,206.19,206.15,0.71]
[1756843827291,11.94205594,206.19,206.16,0.68]
[1756843827292,31.68,206.18,206.16,0.68]
[1756843827713,11.94205594,206.17,206.15,0.03]
[1756843828316,39.02,206.17,206.16,0.68]
[1756843828891,5.51882006,206.24,206.16,0.68]
[1756843829115,11.94205594,206.19,206.16,0.68]
[1756843829317,15.53955921,206.26,206.17,0.68]
[1756843829318,1.9439652,206.26,206.17,0.68]
[1756843829531,11.94205594,206.2,206.17,0.68]
[1756843829698,11.94205594,206.2,206.15,0.03]
[1756843829699,11.94205594,206.18,206.15,0.03]
[1756843830020,39.02,206.18,206.16,12.62205594]
[1756843830195,39.02,206.18,206.16,11.94205594]
[1756843830391,50.98205594,206.19,206.15,0.03]
[1756843830605,39.04,206.18,206.15,0.71]
[1756843831324,39.04,206.18,206.15,0.03]
[1756843831499,39.06,206.18,206.16,0.68]
[1756843831700,39.06,206.18,206.17,4.8503662]
[1756843832120,39.06,206.18,206.15,0.03]
[1756843832415,11.94205594,206.16,206.15,0.03]
[1756843834024,39.73,206.18,206.15,0.03]
[1756843834328,11.94205594,206.16,206.15,0.03]
[1756843835302,0.67,206.21,206.15,0.03]
[1756843835508,11.94205594,206.18,206.15,0.03]
[1756843836432,11.94205594,206.16,206.15,0.03]
[1756843836606,50.98205594,206.16,206.15,0.03]
[1756843836931,51.65205594,206.16,206.15,0.03]
[1756843837228,11.94205594,206.16,206.15,0.03]
[1756843837431,39.02,206.16,206.15,0.03]
[1756843837629,50.96205594,206.16,206.15,0.03]
[1756843838523,26.0,206.18,206.15,0.03]
[1756843838731,11.94205594,206.16,206.15,0.03]
[1756843839932,12.61205594,206.16,206.15,0.03]
[1756843840822,11.94205594,206.16,206.15,0.03]
[1756843841021,50.96205594,206.16,206.15,0.03]
[1756843841432,70.53473613,206.16,206.15,0.03]
[1756843841919,58.59268019,206.16,206.15,0.03]
[1756843842235,70.53473613,206.16,206.15,0.03]
[1756843844524,39.59559401,206.13,206.12,0.03]
[1756843844839,25.96413466,206.03,206.02,0.03]
[1756843845042,64.92413466,206.03,206.02,0.03]
[1756843845338,65.62413466,206.03,206.02,0.03]
[1756843845518,72.42384262,206.03,206.02,0.03]
[1756843845721,33.46384262,206.03,206.02,0.03]
[1756843845928,72.44384262,206.03,206.02,0.03]
[1756843846243,33.46384262,206.03,206.02,0.03]
[1756843846439,72.44384262,206.03,206.02,0.03]
[1756843847439,33.46384262,206.03,206.02,0.03]
[1756843847619,72.64384262,206.03,206.02,0.03]
[1756843847818,33.46384262,206.03,206.02,0.03]
[1756843848113,72.62384262,206.03,206.02,0.03]
[1756843848336,33.46384262,206.03,206.02,0.03]
[1756843848539,72.60384262,206.03,206.02,0.03]
[1756843850539,33.46384262,206.03,206.02,0.03]
[1756843850747,72.62384262,206.03,206.02,0.03]
[1756843853537,71.92384262,206.03,206.02,0.03]
[1756843853742,72.62384262,206.03,206.02,0.03]
[1756843855317,27.91018054,206.03,206.02,0.03]
[1756843855517,65.02413466,206.03,206.02,0.03]
[1756843855838,66.6858574,206.03,206.02,0.03]
[1756843856032,66.97018054,206.03,206.02,0.03]
[1756843856230,65.00413466,206.03,206.02,0.03]
[1756843856431,91.00413466,206.03,206.02,0.03]
[1756843857044,13.59559401,206.09,206.02,0.73]
[1756843857354,11.94205594,206.04,206.02,0.73]
[1756843857528,50.96205594,206.03,206.02,0.03]
[1756843857733,1.94576189,206.07,206.02,11.97205594]
[1756843858043,35.58,206.08,206.06,11.94205594]
[1756843858347,0.06,206.12,206.07,12.64205594]
[1756843858523,0.06,206.12,206.11,11.94205594]
[1756843858724,39.08,206.12,206.11,12.64205594]
[1756843858934,0.06,206.12,206.11,12.64205594]
[1756843859151,1e-08,206.12,206.11,12.64205594]
[1756843859527,1e-08,206.12,206.11,17.49383411]
[1756843860428,1e-08,206.12,206.11,43.49383411]
[1756843860758,1e-08,206.15,206.14,39.87991715]
[1756843860937,1e-08,206.15,206.14,51.82197309]
[1756843861133,1e-08,206.15,206.14,52.52197309]
[1756843861647,1e-08,206.15,206.14,57.37304517]
[1756843864859,1e-08,206.17,206.16,25.82197309]
[1756843865347,1e-08,206.17,206.16,26.52197309]
[1756843865837,1e-08,206.17,206.16,31.37257456]
[1756843866038,1e-08,206.17,206.16,31.51473613]
[1756843866352,0.06,206.3,206.21,0.28432314]
[1756843866651,0.06,206.3,206.27,11.94205594]
[1756843866955,0.06,206.3,206.28,0.7]
[1756843867326,0.06,206.3,206.27,11.94205594]
[1756843867656,0.06,206.3,206.28,0.7]
[1756843867839,0.06,206.3,206.29,4.84754471]
[1756843868163,0.06,206.3,206.28,11.94205594]
[1756843868466,0.06,206.3,206.28,12.64205594]
[1756843868659,0.06,206.3,206.28,11.94205594]
[1756843868840,0.06,206.3,206.28,12.64205594]
[1756843869267,0.06,206.3,206.28,0.7]
[1756843869571,0.06,206.3,206.28,12.75458867]
[1756843870066,0.06,206.3,206.29,8.60681726]
[1756843870766,0.06,206.3,206.29,7.90681726]
[1756843871358,0.06,206.3,206.29,12.75436197]
[1756843872360,0.06,206.3,206.26,0.7]
[1756843872530,8.68681726,206.3,206.24,26.0]
[1756843872736,8.68681726,206.3,206.24,33.90681726]
[1756843872950,0.78,206.3,206.24,33.90681726]
[1756843873257,0.06,206.3,206.27,12.75471588]
[1756843873566,8.68681726,206.3,206.25,12.75509087]
[1756843874267,8.68681726,206.3,206.26,8.58681726]
[1756843874268,0.06,206.3,206.26,8.58681726]
[1756843874643,0.06,206.3,206.27,0.68]
[1756843875071,0.72,206.29,206.24,7.90681726]
[1756843875238,7.96681726,206.3,206.25,7.90681726]
[1756843875440,0.78,206.3,206.25,13.43514071]
[1756843875641,0.78,206.3,206.22,0.68]
[1756843875642,7.90681726,206.28,206.22,0.68]
[1756843875966,38.92,206.27,206.22,0.68]
[1756843876262,38.92,206.27,206.23,7.90681726]
[1756843876461,38.92,206.27,206.19,0.68]
[1756843876462,8.62681726,206.26,206.19,0.68]
[1756843876660,0.06,206.3,206.24,7.90681726]
[1756843876851,0.06,206.3,206.26,7.90681726]
[1756843877047,0.06,206.3,206.21,0.68]
[1756843877048,8.62681726,206.29,206.21,0.68]
[1756843877351,7.90681726,206.28,206.22,7.90681726]
[1756843877556,7.90681726,206.28,206.22,12.7559181]
[1756843877770,8.62681726,206.29,206.23,7.90681726]
[1756843878669,0.72,206.29,206.23,7.90681726]
[1756843878845,8.62681726,206.29,206.23,7.90681726]
[1756843879046,0.72,206.29,206.24,7.90681726]
[1756843879371,0.72,206.28,206.23,7.90681726]
[1756843879546,7.90681726,206.29,206.23,13.43569579]
[1756843879746,0.06,206.3,206.28,7.90681726]
[1756843880066,38.94,206.3,206.28,7.90681726]
[1756843880247,0.06,206.3,206.28,7.90681726]
[1756843880448,0.06,206.3,206.29,8.58681726]
[1756843881149,0.06,206.3,206.29,7.90681726]
[1756843881469,0.06,206.3,206.29,4.84754471]
[1756843882053,0.06,206.3,206.28,4.84777144]
[1756843882372,0.72,206.29,206.24,13.43553719]
[1756843882669,7.96681726,206.3,206.25,0.68]
[1756843882851,0.06,206.3,206.25,8.58681726]
[1756843883564,0.06,206.3,206.25,13.43508284]
[1756843883762,0.06,206.3,206.25,12.75508284]
[1756843883963,0.06,206.3,206.26,7.90681726]
[1756843884160,0.72,206.29,206.22,0.68]
[1756843884366,7.96681726,206.3,206.24,7.90681726]
[1756843884869,7.90681726,206.29,206.23,7.90681726]
[1756843885050,7.96681726,206.3,206.24,7.90681726]
[1756843885252,7.90681726,206.29,206.23,12.75553949]
[1756843886257,7.90681726,206.29,206.23,7.90681726]
[1756843886457,7.90681726,206.26,206.2,7.90681726]
[1756843886665,46.74681726,206.26,206.2,7.90681726]
[1756843886859,46.74681726,206.26,206.19,0.68]
[1756843887073,7.90681726,206.2,206.17,0.03]
[1756843887257,27.14648471,206.25,206.17,0.03]
[1756843887258,38.84,206.19,206.17,0.03]
[1756843887464,46.74681726,206.19,206.17,0.03]
[1756843887656,7.90681726,206.18,206.17,0.03]
[1756843887969,26.0,206.23,206.17,0.71]
[1756843888169,46.74681726,206.22,206.17,5.56036313]
[1756843888771,7.90681726,206.21,206.17,5.56036313]
[1756843888973,7.90681726,206.21,206.17,4.88036313]
[1756843889560,0.72,206.2,206.17,0.03]
[1756843889964,7.90681726,206.18,206.17,0.03]
[1756843890877,0.72,206.2,206.17,0.03]
[1756843891079,7.90681726,206.18,206.17,0.03]
[1756843891881,46.78681726,206.18,206.17,0.03]
[1756843892380,7.90681726,206.18,206.17,0.03]
[1756843892571,46.76681726,206.18,206.17,0.03]
[1756843893279,47.48681726,206.18,206.17,0.03]
[1756843893578,52.33694821,206.18,206.17,0.03]
[1756843893978,38.84,206.18,206.17,0.03]
[1756843894165,46.74681726,206.18,206.17,0.03]
[1756843895496,133.4,206.23,206.17,0.71]
[1756843895658,46.76681726,206.22,206.17,0.71]
[1756843895858,7.90681726,206.21,206.17,0.71]
[1756843896557,7.90681726,206.18,206.17,0.03]
[1756843896956,46.76681726,206.18,206.17,0.03]
[1756843897188,47.48681726,206.18,206.17,0.03]
[1756843897463,46.76681726,206.18,206.17,0.03]
[1756843897864,47.48681726,206.18,206.17,0.03]
[1756843898184,46.76681726,206.18,206.17,0.03]
[1756843898764,47.48681726,206.18,206.17,0.03]
[1756843899387,52.33694821,206.18,206.17,0.03]
[1756843899692,38.82,206.18,206.17,0.71]
[1756843899862,38.82,206.18,206.17,0.03]
[1756843900062,46.72681726,206.18,206.17,0.03]
[1756843900287,7.90681726,206.18,206.17,0.03]
[1756843900485,46.74681726,206.18,206.17,0.03]
[1756843900674,7.90681726,206.19,206.17,0.03]
[1756843900879,38.84,206.18,206.17,0.71]
[1756843901790,7.90681726,206.21,206.17,0.71]
[1756843902084,38.82,206.18,206.17,0.71]
[1756843902391,38.82,206.18,206.17,0.03]
[1756843902796,46.72681726,206.18,206.17,0.03]
[1756843903997,26.0,206.21,206.17,0.03]
[1756843904198,46.70681726,206.2,206.17,0.03]
[1756843904711,7.90681726,206.19,206.17,0.03]